[Event "37th ECCC 2022"]
[Site "Mayrhofen"]
[Date "2022.10.03"]
[Round "1.19"]
[White "Erigaisi Arjun"]
[Black "Abel, Dennes"]
[Result "1-0"]
[ECO "B12"]
[WhiteElo "2728"]
[BlackElo "2416"]
[Annotator "TA"]
[PlyCount "85"]
[EventDate "2022.10.03"]
[EventType "team-tourn"]
[EventCountry "AUT"]
[SourceTitle "playchess.com"]
[Source "ChessBase"]
[SourceQuality "1"]
[TimeControl "40/5400+30:1800+30"]

{[%evp 12,85,19,25,17,0,0,0,0,7,0,-11,-36,-55,-59,-83,-83,-146,-135,-164,-86,-105,-84,-100,-80,-83,-85,-77,-84,-91,0,-266,0,0,0,-5,0,-128,167,161,199,204,204,0,10,16,90,0,81,66,67,0,0,0,0,-6,-4,-84,-74,-90,-91,-92,-68,-71,0,0,5485,5417,5339,5324,5310,5310,5210,5093,29996,57]} 1. e4 {[%emt 0:00:11]} c6 {[%emt 0:00:15]} 2. d4 {[%emt 0:00:07]} d5 {[%emt 0:00:07]} 3. e5 {[%emt 0:00:12]} Bf5 {[%emt 0:00:12]} 4. h4 {[%emt 0:00:06]} h6 {[%emt 0:01:00]} 5. g4 {[%emt 0:01:03]} Be4 {[%emt 0:00:08]} 6. f3 {[%emt 0:00:39]} Bh7 {[%emt 0:00:07]} 7. e6 {[%emt 0:02:42]} Nf6 {[%emt 0:00:59] B12: Caro-Kann: Advance Variation.} 8. Bd3 {[%emt 0:05:58]} Qd6 {[%emt 0:00:59]} 9. exf7+ {[%emt 0:00:14]} Kxf7 {[%emt 0:00:06] The position is equal.} 10. Ne2 {[%emt 0:03:40] Bf4 is the strong threat.} Nbd7 {[%emt 0:03:45] [#]} 11. Nbc3 $146 {[%emt 0:05:11]} ({Predecessor:} 11. g5 Bxd3 12. Qxd3 hxg5 13. Bxg5 e5 14. Nd2 exd4 15. O-O-O c5 16. Nf4 Ne5 17. Qb5 {½-½ (83) Djokic,M (2194)-Keymer,V (2675) Chess.com INT 2022}) 11... e5 {[%emt 0:04:15] Against Bf4} 12. dxe5 {[%emt 0:08:38]} Nxe5 {[%emt 0:01:01]} (12... Qxe5 13. Bf4 Qe7 14. Bxh7 Rxh7 15. Kf2 $11) 13. O-O {[%emt 0:00:16]} Re8 {[%emt 0:04:57][%cal Og7g5]} 14. Bxh7 {[%emt 0:10:41]} (14. Kg2 $142) 14... Rxh7 $17 {[%emt 0:00:48]} (14... Nxh7 15. h5 $15) 15. Kg2 {[%emt 0:00:23]} g6 {[%emt 0:08:33]} (15... g5 $1 $19 {White must now prevent ...Ng6.} 16. Rh1 (16. hxg5 $2 hxg5 17. Rh1 Rxh1 $17) 16... gxh4) 16. Ng3 {[%emt 0:06:41]} Kg8 {[%emt 0:06:12]} 17. Nce2 {[%emt 0:01:34]} h5 {[%emt 0:06:57]} 18. g5 {[%emt 0:00:57]} Nfd7 {[%emt 0:01:41]} 19. f4 {[%emt 0:18:31]} Ng4 {[%emt 0:01:38]} 20. f5 {[%emt 0:00:14]} Rhe7 {[%emt 0:06:25]} (20... gxf5 $17 21. a3 Nde5) 21. Bf4 $2 {[%emt 0:03:12][%mdl 8192] [#]} (21. Nf4 $1 $11 {and White stays safe.}) 21... Nde5 $2 {[%emt 0:11:34]} (21... Rxe2+ $1 $19 {[%mdl 512]} 22. Nxe2 Ne3+ 23. Bxe3 Rxe3) 22. f6 $11 {[%emt 0:04:10]} Rd7 {[%emt 0:00:19]} 23. c3 {[%emt 0:05:30]} c5 {[%emt 0:02:45]} 24. Kg1 {[%emt 0:06:16]} (24. Bxe5 $11 Rxe5 25. Qd3) 24... Qc6 $2 {[%emt 0:04:47][%mdl 8192]} (24... d4 $1 $17 {[%cal Rd4d3] keeps the pressure on.} 25. cxd4 cxd4 26. Qb3+ Qe6) 25. Bxe5 $18 {[%emt 0:01:06] Strongly threatening Bf4.} Nxe5 {[%emt 0:05:18]} 26. Nf4 $1 {[%emt 0:01:03][%cal Of4g6]} c4 {[%emt 0:04:28] [#]} 27. Nge2 $2 {[%emt 0:04:29]} (27. Nxg6 $1 $18 {[%mdl 512]} Bc5+ 28. Kh2 Ng4+ 29. Kh3) 27... Bc5+ {[%emt 0:02:07]} 28. Nd4 {[%emt 0:00:15][%cal Of4g6] aiming for Nxg6! Pair of Knights!} Qd6 {[%emt 0:04:29] [#]} (28... Rf7 $11) 29. Qd2 {[%emt 0:03:09]} ({Better is} 29. Qe2 $1 $16 {Hoping for Rae1.} Kf7 30. Rae1) 29... Bxd4+ {[%emt 0:03:34]} (29... Nd3 $1 $11 {keeps the balance.} 30. Nxd3 (30. Nxg6 Re4 $11) 30... Qg3+ 31. Qg2 Qxg2+ 32. Kxg2 cxd3) 30. cxd4 $16 {[%emt 0:00:23]} ({Don't play} 30. Qxd4 $6 Nd3 31. Nxg6 Qg3+ 32. Kh1 Qh3+ 33. Kg1 Qg3+ 34. Kh1 Qh3+ 35. Kg1 Qg3+ $11) 30... Nd3 {[%emt 0:01:40] Inhibits Rae1.} 31. Nxd3 {[%emt 0:02:13]} (31. Nxg6 $14 Qb6 32. Rf4 Nxf4 33. Nxf4) 31... cxd3 $11 {[%emt 0:02:08]} 32. Qxd3 {[%emt 0:02:20]} Re4 {[%emt 0:00:17][%cal Be8e4,Be4h4,Bh4g4][%mdl 32] Threatens to win with ...Rg4+.} 33. Rf2 $36 {[%emt 0:00:33][%mdl 2048] White has the initiative.} Kf7 {[%emt 0:01:11]} 34. Rc1 {[%emt 0:00:57]} (34. Qh3 $11) 34... Qe6 $17 {[%emt 0:04:04]} 35. Qf3 {[%emt 0:01:28]} Rxh4 {[%emt 0:01:20]} 36. Re2 {[%emt 0:00:36]} Rg4+ {[%emt 0:03:12]} 37. Kf2 {[%emt 0:00:56]} Qd6 {[%emt 0:01:33]} ({Black should play} 37... Qf5 $17 38. Qxf5 gxf5 39. Re7+ Rxe7 40. fxe7 Re4) 38. Re5 $1 $11 {[%emt 0:00:14] And now Rc8 would win. Chess con chili.} Qb4 $2 {[%emt 0:02:30][%mdl 8192]} (38... Qb6 $11 39. Re7+ Rxe7 40. fxe7+ Kxe7 41. Re1+ Re4 42. Rxe4+ dxe4 43. Qxe4+ Kf7) 39. Re7+ $1 $18 {[%emt 0:01:47]} Rxe7 {[%emt 0:00:10]} 40. fxe7+ {[%emt 0:00:05]} Kxe7 {[%emt 0:00:09] [#]} 41. Qf6+ $1 {[%emt 0:30:17]} Kd7 {[%emt 0:30:52]} 42. Qf7+ {[%emt 0:00:20]} Kd8 {[%emt 0:00:20]} 43. Qc7+ $2 {[%emt 0:00:50] Both players deserved the win here.  Weighted Error Value: White=0.39/Black=0.49} (43. Qxd5+ {mates} Ke8 44. Qe6+ Kf8 45. Rc8+ Kg7 46. Qg8#) 1-0

[Event "37th ECCC 2022"]
[Site "Mayrhofen"]
[Date "2022.10.03"]
[Round "1.20"]
[White "Kristoferitsch, Daniel"]
[Black "Nihal Sarin"]
[Result "0-1"]
[ECO "E94"]
[WhiteElo "2283"]
[BlackElo "2673"]
[Annotator "TA"]
[PlyCount "98"]
[EventDate "2022.10.03"]
[EventType "team-tourn"]
[EventCountry "AUT"]
[SourceTitle "playchess.com"]
[Source "ChessBase"]
[SourceQuality "1"]
[TimeControl "40/5400+30:1800+30"]

{[%evp 15,98,33,41,28,30,22,19,16,22,16,26,9,22,8,23,12,23,26,20,19,25,17,45,70,64,33,37,28,77,26,50,29,48,52,58,48,64,0,0,0,0,0,0,0,0,0,0,0,0,0,0,0,0,0,0,0,0,-114,0,-95,-8,-15,-14,-95,-95,-95,-88,-88,-30,-30,-30,-30,-30,-30,0,0,0,0,0,-39,-39,-25,-31,-89,-86]} 1. d4 {[%emt 0:00:06]} d6 {[%emt 0:00:13]} 2. Nf3 {[%emt 0:01:22]} Nf6 {[%emt 0:00:08]} 3. c4 {[%emt 0:00:13]} g6 {[%emt 0:00:06]} 4. Nc3 {[%emt 0:00:07]} Bg7 {[%emt 0:00:05]} 5. e4 {[%emt 0:00:07]} O-O {[%emt 0:00:05]} 6. Be2 {[%emt 0:00:07]} e5 {[%emt 0:00:05]} 7. O-O {[%emt 0:00:09]} Bg4 {[%emt 0:00:02]} 8. d5 {[%emt 0:00:53]} a5 {[%emt 0:00:07]} 9. Be3 {[%emt 0:01:43] E94: King's Indian: Classical: 6 Be2 e5 7 0-0: Various Black 7th moves.} Na6 {[%emt 0:00:09]} 10. Qc2 {[%emt 0:07:06]} Bd7 {[%emt 0:07:46] [#]} 11. Nd2 $146 {[%emt 0:07:55] The position is equal.} ({Predecessor:} 11. c5 Ng4 12. Bg5 f6 13. c6 bxc6 14. dxc6 Be6 15. Bd2 Qe8 16. Bb5 Kh8 17. Rac1 {½-½ (75) Siekanska,M (1989)-Bukala,W (1801) Sypniewo 2022}) 11... Ng4 {[%emt 0:02:09]} 12. Bxg4 {[%emt 0:00:45]} Bxg4 {[%emt 0:00:08]} 13. f3 {[%emt 0:08:56]} Bd7 {[%emt 0:00:48]} 14. a3 {[%emt 0:08:58]} f5 {[%emt 0:09:37]} 15. Kh1 {[%emt 0:00:19]} f4 {[%emt 0:10:52]} 16. Bg1 {[%emt 0:00:06]} b6 {[%emt 0:02:38]} 17. Rab1 {[%emt 0:04:29]} g5 {[%emt 0:12:09]} 18. b4 {[%emt 0:00:17]} Rf6 {[%emt 0:19:53]} 19. bxa5 {[%emt 0:08:51]} bxa5 {[%emt 0:00:26]} 20. Rb7 {[%emt 0:03:41]} (20. c5 $5) 20... Bf8 {[%emt 0:08:00]} 21. Rfb1 {[%emt 0:02:38]} h5 {[%emt 0:02:50]} (21... Rg6 $11) 22. c5 {[%emt 0:03:59]} (22. Nb5 $16) 22... Nxc5 $11 {[%emt 0:01:17]} 23. Bxc5 {[%emt 0:00:07]} dxc5 {[%emt 0:00:02]} 24. Na4 {[%emt 0:00:21]} Bxa4 {[%emt 0:11:34]} 25. Qxa4 {[%emt 0:00:07]} Bd6 {[%emt 0:03:48]} 26. Qb5 {[%emt 0:07:53]} (26. R7b5 $14) 26... a4 $1 {[%emt 0:07:49]} 27. Nc4 {[%emt 0:13:39]} Rf8 {[%emt 0:00:05]} 28. Qc6 {[%emt 0:01:28][%cal Oc4e5]} Qf6 {[%emt 0:00:02]} 29. Nxd6 {[%emt 0:04:32]} cxd6 {[%emt 0:00:04]} 30. R1b6 {[%emt 0:01:51]} Rad8 {[%emt 0:01:05]} 31. Qxa4 {[%emt 0:01:38]} ({Don't play} 31. Qc7 Rf7 32. Qc6 g4 $15) 31... g4 {[%emt 0:00:04]} 32. Qd1 {[%emt 0:01:54]} Qh4 {[%emt 0:01:33]} 33. a4 {[%emt 0:01:09] aiming for a5.} Rf7 $1 {[%emt 0:00:40]} 34. a5 {[%emt 0:08:06]} Rxb7 {[%emt 0:00:15]} 35. Rxb7 {[%emt 0:00:01][%mdl 4096] Endgame KQR-KQR} Ra8 {[%emt 0:00:01] And now ...g3 would win.} 36. Rb5 {[%emt 0:00:30] [#]} (36. Qb1 $11 Rxa5 37. Rb8+ Kf7 38. g3) 36... Kh7 {[%emt 0:01:11]} (36... Qf2 $1 $17 {Strongly threatening ...c4.} 37. fxg4 f3 38. gxf3 hxg4) 37. Qf1 {[%emt 0:00:47] [#]} (37. Rb7+ $1 $11 Kg8 38. Rd7) 37... c4 {[%emt 0:00:33]} (37... g3 $1 $17 {[%csl Gg3][%cal Rh4h2]} 38. Qg1 Kg7) 38. Rb7+ {[%emt 0:00:39]} Kg6 {[%emt 0:00:29]} 39. Rc7 {[%emt 0:01:21]} (39. Rb6 $1 $11 {remains equal.}) 39... Rxa5 $17 {[%emt 0:00:11] Hoping for ...Ra2.} 40. Rxc4 {[%emt 0:00:16]} Ra2 {[%emt 0:00:27] ( -> ...gxf3)} 41. Rc1 {[%emt 0:09:40]} gxf3 {[%emt 0:13:11] Black is more active.} (41... Kh6 $17) 42. Qxf3 $11 {[%emt 0:00:11]} Qg4 {[%emt 0:00:05]} 43. Rg1 {[%emt 0:04:09]} Kh6 {[%emt 0:10:45]} 44. Qb3 {[%emt 0:06:49]} Re2 {[%emt 0:00:19]} 45. Qb8 {[%emt 0:00:16]} Qg6 {[%emt 0:01:07]} 46. Qh8+ {[%emt 0:01:29]} Kg5 {[%emt 0:00:10]} 47. Qd8+ {[%emt 0:00:12]} Qf6 {[%emt 0:01:03]} 48. Qg8+ {[%emt 0:01:28]} Kh6 {[%emt 0:00:17]} 49. h3 {[%emt 0:08:54]} (49. Rf1 $1 $15) 49... Rxe4 {[%emt 0:02:32] Weighted Error Value: White=0.17 (very precise) /Black=0.14 (very precise)} 0-1

[Event "37th ECCC 2022"]
[Site "Mayrhofen"]
[Date "2022.10.03"]
[Round "1.22"]
[White "Weber, Daniel"]
[Black "Predojevic, Borki"]
[Result "0-1"]
[ECO "E04"]
[WhiteElo "2145"]
[BlackElo "2584"]
[Annotator "TA"]
[PlyCount "76"]
[EventDate "2022.10.03"]
[EventType "team-tourn"]
[EventCountry "AUT"]
[SourceTitle "playchess.com"]
[Source "ChessBase"]
[SourceQuality "1"]
[TimeControl "40/5400+30:1800+30"]

{[%evp 16,76,-39,-53,-48,-54,-43,-53,-45,-69,-35,-31,-35,-30,-43,-43,-14,-27,-27,-33,-31,-24,-16,-50,-47,-50,-65,-60,-58,-44,-44,-52,-58,-91,-102,-135,-82,-168,-170,-167,-173,-182,-135,-131,-127,-129,-124,-224,-229,-303,-278,-397,-393,-464,-464,-416,-359,-585,-505,-465,-461,-732,-704]} 1. d4 {[%emt 0:00:04]} d5 {[%emt 0:00:08]} 2. c4 {[%emt 0:00:53]} e6 {[%emt 0:00:09]} 3. Nf3 {[%emt 0:01:12]} Nf6 {[%emt 0:00:23]} 4. g3 {[%emt 0:00:22]} dxc4 {[%emt 0:03:09]} 5. Bg2 {[%emt 0:01:02]} Nbd7 {[%emt 0:02:10]} 6. Qa4 {[%emt 0:04:03]} a6 {[%emt 0:01:15]} 7. Qxc4 {[%emt 0:01:00]} b5 {[%emt 0:02:11]} 8. Qc2 {[%emt 0:08:55]} Bb7 {[%emt 0:00:47]} 9. Bg5 {[%emt 0:02:34]} c5 {[%emt 0:05:24] E03: Open Catalan: 5 Qa4+ Nbd7 6 Qxc4.} 10. dxc5 {[%emt 0:09:08] aiming for c6.} Bxc5 {[%emt 0:00:28]} 11. O-O {[%emt 0:01:39]} Rc8 {[%emt 0:01:05][%cal Oc5f2] Black is slightly better.} 12. Qd3 {[%emt 0:01:39]} O-O {[%emt 0:06:49]} (12... Qb6 $5 {[%cal Rf6g4]} 13. e3 Nd5 $17) 13. Bxf6 {[%emt 0:08:06]} Nxf6 {[%emt 0:00:20]} 14. Qxd8 $1 {[%emt 0:00:29]} Rfxd8 {[%emt 0:00:18] [#]} 15. Nc3 $146 {[%emt 0:03:12]} ({Predecessor:} 15. Nbd2 Bb6 16. Rac1 Rxc1 17. Rxc1 Ng4 18. Rf1 Ne3 19. fxe3 Bxe3+ 20. Kh1 Bxd2 {1-0 (53) Kaposztas,M (2273)-Dudas,J (2386) Budapest 2001}) 15... Bc6 {[%emt 0:22:33] A strong pair of Bishops.} 16. a3 {[%emt 0:05:55]} Be8 {[%emt 0:04:36]} 17. Rac1 {[%emt 0:06:37]} a5 {[%emt 0:12:57]} 18. e3 {[%emt 0:08:37]} Kf8 {[%emt 0:08:38]} 19. Ne2 {[%emt 0:05:13]} Ne4 {[%emt 0:10:40]} 20. Rfd1 {[%emt 0:06:22]} Rxd1+ {[%emt 0:04:27]} 21. Rxd1 {[%emt 0:00:08]} Nd6 {[%emt 0:02:41]} 22. Ne5 {[%emt 0:03:51]} f6 {[%emt 0:02:03]} 23. Nd3 {[%emt 0:00:53]} Ba7 {[%emt 0:00:10]} 24. Ndf4 {[%emt 0:05:24]} Ke7 {[%emt 0:00:44]} 25. Bh3 {[%emt 0:01:48] [#]} f5 {[%emt 0:02:40]} (25... g5 $142 $1 {[%cal Rg5f4]} 26. Nd3 (26. Nxe6 $2 Bd7 $19) (26. Bxe6 Rd8 $17) 26... Rc2) 26. Rc1 {[%emt 0:00:21]} (26. Nd4 $17) 26... Rxc1+ $19 {[%emt 0:01:00]} 27. Nxc1 {[%emt 0:00:04] [#]} Nc4 $1 {[%emt 0:00:25]} 28. Nfd3 {[%emt 0:02:20]} Kd6 {[%emt 0:01:50]} (28... g6 $19 29. Bf1 e5) 29. Ne2 {[%emt 0:02:03]} g6 {[%emt 0:00:59] Black is more active.} 30. Nc3 {[%emt 0:00:55]} e5 {[%emt 0:00:38][%cal Be6e5,Be5e4][%mdl 32] And now ...e4 would win.} 31. g4 {[%emt 0:05:55]} (31. Bf1 $17 {was the only chance.}) 31... e4 {[%emt 0:01:06]} 32. Nf4 {[%emt 0:00:51]} Nxe3 {[%emt 0:01:12][%cal Ob5b4] Strongly threatening ...b4!} ({Stronger than} 32... Nxb2 33. gxf5 Ke5 34. fxg6 hxg6 35. Bg2 $17) 33. fxe3 {[%emt 0:01:50]} (33. gxf5 $142 gxf5 34. fxe3 Bxe3+ 35. Kf1 Bxf4 36. Bxf5) 33... Bxe3+ {[%emt 0:00:05]} 34. Kg2 {[%emt 0:00:03]} Bxf4 {[%emt 0:00:22]} 35. gxf5 {[%emt 0:00:03]} Ke5 {[%emt 0:00:25]} 36. f6 {[%emt 0:01:13]} (36. fxg6 hxg6 37. Ne2) 36... b4 {[%emt 0:00:23] Black is clearly winning.} 37. axb4 {[%emt 0:02:02]} axb4 {[%emt 0:00:06]} 38. Na2 {[%emt 0:01:08]} (38. Ne2 $142 Bg5 39. Kf2) 38... Bd2 {[%emt 0:00:06] Weighted Error Value: White=0.43/Black=0.13 (very precise)} 0-1

[Event "37th ECCC 2022"]
[Site "Mayrhofen"]
[Date "2022.10.03"]
[Round "1.23"]
[White "Markus, Robert"]
[Black "Noetzel, Felix"]
[Result "1-0"]
[ECO "D30"]
[WhiteElo "2615"]
[BlackElo "2093"]
[Annotator "TA"]
[PlyCount "75"]
[EventDate "2022.10.03"]
[EventType "team-tourn"]
[EventCountry "AUT"]
[SourceTitle "playchess.com"]
[Source "ChessBase"]
[SourceQuality "1"]
[TimeControl "40/5400+30:1800+30"]

{[%evp 18,75,12,6,27,15,19,21,64,25,77,43,55,35,72,66,75,29,41,20,27,31,38,30,26,39,32,29,56,66,83,81,87,90,83,90,100,100,142,150,169,168,189,178,239,224,286,286,327,313,319,314,425,430,839,836,29973,29974,2405,2284]} 1. d4 {[%emt 0:00:04]} d5 {[%emt 0:00:06]} 2. c4 {[%emt 0:00:05]} e6 {[%emt 0:00:04]} 3. Nf3 {[%emt 0:00:05]} c6 {[%emt 0:00:11]} 4. e3 {[%emt 0:00:05]} Nf6 {[%emt 0:00:25]} 5. b3 {[%emt 0:00:06]} Nbd7 {[%emt 0:00:22]} 6. Bb2 {[%emt 0:00:25]} Ne4 {[%emt 0:06:06]} 7. Nbd2 {[%emt 0:08:36]} f5 {[%emt 0:01:58]} 8. g3 {[%emt 0:00:56]} Bd6 {[%emt 0:01:56]} 9. Bg2 {[%emt 0:00:39]} O-O {[%emt 0:00:10]} 10. O-O {[%emt 0:00:05]} Qf6 {[%emt 0:03:25] E01: Catalan: Early deviations.} 11. Ne1 {[%emt 0:04:38][%cal Bf3e1,Be1d3,Bd3f4][%mdl 32]} Qh6 {[%emt 0:02:23]} 12. Nd3 {[%emt 0:10:34]} Ndf6 {[%emt 0:04:58] [#] The position is equal.} 13. Re1 $146 {[%emt 0:03:25]} ({Predecessor:} 13. h4 Ng4 14. Qe2 g5 15. Nf3 gxh4 16. Nxh4 Bxg3 17. fxg3 Nxg3 18. Qe1 Qxh4 19. Rf3 Qh2# {0-1 (19) Vyatkin,D (2362)-Remizov,Y (2403) Chess.com INT 2020}) 13... Bd7 {[%emt 0:06:27]} (13... b5 $11 {remains equal.}) 14. Nf1 {[%emt 0:05:18]} Be8 {[%emt 0:07:24]} 15. f3 {[%emt 0:00:55]} Bh5 {[%emt 0:13:26]} 16. Nf4 {[%emt 0:02:44]} Ng5 $1 {[%emt 0:01:21]} 17. Rc1 {[%emt 0:15:44]} (17. h4 $16 Nf7 18. Nxe6) 17... Rae8 {[%emt 0:04:48]} 18. Rc2 {[%emt 0:00:26]} Nf7 {[%emt 0:04:09]} 19. Qc1 {[%emt 0:06:39]} e5 {[%emt 0:04:55]} 20. dxe5 {[%emt 0:03:22]} (20. Nxh5 {looks sharper.} Qxh5 21. dxe5 Nxe5 22. Bxe5 Rxe5 23. f4) 20... Nxe5 {[%emt 0:00:15]} 21. Nxh5 {[%emt 0:00:27]} Qxh5 {[%emt 0:01:10]} 22. Bxe5 {[%emt 0:00:05]} Bxe5 {[%emt 0:04:27]} 23. f4 {[%emt 0:00:23]} Bb8 {[%emt 0:01:26] Black is on the road to losing.} 24. cxd5 {[%emt 0:00:53]} cxd5 {[%emt 0:07:14]} 25. Rd1 {[%emt 0:02:12]} Rd8 {[%emt 0:04:46] [#]} 26. Rcd2 $1 {[%emt 0:00:52][%cal Rg2d5]} Rc8 {[%emt 0:04:57]} 27. Qa1 {[%emt 0:07:08]} b5 {[%emt 0:09:01]} 28. Bxd5+ {[%emt 0:01:06]} Kh8 {[%emt 0:00:04]} 29. Be6 {[%emt 0:03:48]} Rce8 {[%emt 0:03:24]} 30. Bd7 {[%emt 0:00:08]} Nxd7 {[%emt 0:00:25]} (30... Re7 $142 31. Bxb5 Bc7) 31. Rxd7 $18 {[%emt 0:00:06][%csl Gd7][%cal Ra1g7] [#]} Rf7 {[%emt 0:00:05]} 32. Qc3 {[%emt 0:01:41] Prevents Bc7.} h6 {[%emt 0:01:08]} 33. Qc6 {[%emt 0:04:30]} Rf6 {[%emt 0:02:39]} 34. Qxb5 {[%emt 0:00:43] Rd8 is the strong threat.} Rfe6 {[%emt 0:00:41]} 35. R1d5 {[%emt 0:01:40]} Qf3 {[%emt 0:00:38]} (35... a6 $142 36. Rxf5 Qg6) 36. Rd8 {[%emt 0:00:17]} Rxd8 {[%emt 0:00:52]} 37. Rxd8+ {[%emt 0:00:06]} Kh7 {[%emt 0:00:02]} 38. Qxf5+ {[%emt 0:00:18] Weighted Error Value: White=0.09 (flawless) /Black=0.51} 1-0

[Event "37th ECCC 2022"]
[Site "Mayrhofen"]
[Date "2022.10.03"]
[Round "1.24"]
[White "Boeddeker, Henry"]
[Black "Sebenik, Matej"]
[Result "0-1"]
[ECO "C01"]
[WhiteElo "2130"]
[BlackElo "2518"]
[Annotator "TA"]
[PlyCount "76"]
[EventDate "2022.10.03"]
[EventType "team-tourn"]
[EventCountry "AUT"]
[SourceTitle "playchess.com"]
[Source "ChessBase"]
[SourceQuality "1"]
[TimeControl "40/5400+30:1800+30"]

{[%evp 14,76,32,23,22,21,15,21,35,8,16,17,31,7,3,3,3,3,5,2,12,-44,-62,-391,-302,-268,-270,-364,-364,-352,-350,-479,-467,-466,-356,-360,-352,-352,-352,-352,-352,-352,-352,-351,-351,-346,-346,-431,-429,-492,-492,-539,-528,-832,-832,-784,-761,-645,-601,-4894,-4802,-2695,-1035,-29972,-5397]} 1. e4 {[%emt 0:00:03]} e6 {[%emt 0:00:07]} 2. d4 {[%emt 0:00:07]} d5 {[%emt 0:00:04]} 3. exd5 {[%emt 0:00:06]} exd5 {[%emt 0:00:05]} 4. Nf3 {[%emt 0:00:06]} Nf6 {[%emt 0:00:05]} 5. Bd3 {[%emt 0:00:12]} c5 {[%emt 0:00:07][%cal Bc7c5,Bc5c4][%mdl 32]} 6. O-O {[%emt 0:03:50]} c4 {[%emt 0:00:10]} 7. Re1+ {[%emt 0:01:28]} Be7 {[%emt 0:00:06]} 8. Bf1 {[%emt 0:00:42]} O-O {[%emt 0:00:08] C01: French: Exchange Variation.} 9. b3 {[%emt 0:06:40]} cxb3 {[%emt 0:00:06]} 10. axb3 {[%emt 0:00:57]} Ne4 {[%emt 0:00:21] The position is equal.} 11. Ba3 {[%emt 0:07:10]} Bxa3 {[%emt 0:00:07] [#]} 12. Nxa3 $146 {[%emt 0:01:58]} ({Predecessor:} 12. Rxa3 Bg4 13. Qd3 Nc6 14. c3 Qf6 15. Ra2 Bxf3 16. Qxf3 Qxf3 17. gxf3 Ng5 18. Kg2 {0-1 (35) Koci,L-Gdovin,J (2201) Tatranska Lomnica 1999}) 12... Nc6 {[%emt 0:00:14][%cal Bb8c6,Bc6d4,Bd4b3,Bb3a1][%mdl 32]} 13. c4 {[%emt 0:09:16]} Bg4 {[%emt 0:30:15]} 14. h3 {[%emt 0:10:47]} Bxf3 {[%emt 0:04:52]} 15. Qxf3 {[%emt 0:00:08] With the idea cxd5.} Nxd4 {[%emt 0:01:29]} 16. Qe3 {[%emt 0:03:37]} Qf6 {[%emt 0:19:45]} 17. cxd5 {[%emt 0:09:49]} (17. Rad1 $11 Nf5 18. Qf3) 17... Nc3 $15 {[%emt 0:03:01]} 18. Qe5 $2 {[%emt 0:11:38][%mdl 8192] This costs White the game.} ({Wrong is} 18. Qxc3 $2 {[#]} Ne2+ $1 {[%mdl 512]} 19. Bxe2 Qxc3 $19) (18. Rac1 $15 Nxd5 19. Qe4) 18... Nxb3 {[%emt 0:00:52] Pair of Knights!} 19. Qxf6 {[%emt 0:08:32]} gxf6 {[%emt 0:00:04]} 20. Re3 {[%emt 0:00:27] [#] Threatens to win with Rae1.} Nxa1 {[%emt 0:00:05]} 21. Rxc3 {[%emt 0:00:09]} Rfc8 {[%emt 0:00:21] Prevents Rc7.} 22. Bc4 {[%emt 0:00:59]} a6 {[%emt 0:02:44]} 23. d6 {[%emt 0:03:48]} b5 {[%emt 0:02:19]} 24. d7 {[%emt 0:00:19]} Rd8 {[%emt 0:00:58]} ({Worse is} 24... bxc4 25. dxc8=N Rxc8 26. Nxc4 $11) (24... Rxc4 $2 25. Nxc4 Rd8 26. Na5 Rxd7 27. Rc1 $16) 25. Bd5 {[%emt 0:01:27]} Ra7 {[%emt 0:00:13]} 26. Bc6 {[%emt 0:00:33]} Kf8 {[%emt 0:05:33] White must now prevent ...Rc7.} 27. Re3 {[%emt 0:03:57] Re8+ is the strong threat.} Raxd7 {[%emt 0:00:13]} 28. Bxd7 {[%emt 0:00:11]} Rxd7 $19 {[%emt 0:00:03][%mdl 4096] Endgame KRN-KRN} 29. Kf1 {[%emt 0:01:14]} Rc7 {[%emt 0:00:30]} 30. Ke2 {[%emt 0:05:12]} b4 {[%emt 0:10:38]} 31. Nb1 {[%emt 0:00:40]} a5 {[%emt 0:00:12][%cal Ba6a5,Ba5a4,Ba4a3][%mdl 32]} 32. Nd2 {[%emt 0:01:26]} a4 {[%emt 0:00:25] Hoping for ...a3.} 33. Re4 {[%emt 0:01:48]} Nc2 {[%emt 0:00:28]} 34. Kd1 {[%emt 0:01:49]} a3 {[%emt 0:00:32]} 35. Nb3 {[%emt 0:03:30]} Rc3 {[%emt 0:00:19] ( -> ...a2)} 36. Re2 {[%emt 0:01:29]} Rxb3 {[%emt 0:00:20]} 37. Rxc2 {[%emt 0:00:10]} Rc3 {[%emt 0:01:58]} (37... Rd3+ $142 38. Ke2 Rd8) 38. Rd2 {[%emt 0:01:01]} b3 {[%emt 0:00:13] Weighted Error Value: White=0.83/Black=0.22 (precise)} 0-1